fUST/lending_fUST_20240506
["ID","MTS","AMOUNT","RATE_DAILY","PERIOD"]
[326491908,1715001431019,-2373.9601,0.00034244,30]
[326491909,1715001431046,-200.0,0.00034332,120]
[326491910,1715001431072,-200.0,0.0003449,120]
[326491911,1715001431115,-200.0,0.00034747,120]
[326491912,1715001431140,-10182.0,0.00035,30]
[326491913,1715001431164,-1909.71310292,0.00035,30]
[326491914,1715001431188,-155.86628526,0.00035,30]
[326491915,1715001431212,-387.18238451,0.00035,30]
[326491916,1715001431241,-186.72360255,0.00035,30]
[326491917,1715001431274,-476.21609939,0.00035,30]
[326491918,1715001431299,-1000.0,0.00035,35]
[326491919,1715001431323,-2856.786281,0.00035616,120]
[326491920,1715001431351,-2411.41830522,0.00035662,120]
[326491921,1715001431380,-200.0,0.00036712,120]
[326491922,1715001431404,-1104.72809519,0.0003707,31]
[326491923,1715001431431,-200.0,0.00037399,120]
[326491924,1715001431461,-200.0,0.00037761,120]
[326491925,1715001431486,-1000.0,0.00038,38]
[326491926,1715001431513,-916.0,0.00038,120]
[326491927,1715001431536,-1000.0,0.00038,90]
[326491928,1715001431560,-2000.0,0.00038,32]
[326491929,1715001431585,-200.0,0.00038071,120]
[326491930,1715001431611,-200.0,0.00038086,120]
[326491931,1715001431635,-70000.0,0.000381,90]
[326491932,1715001431659,-999.0,0.00038356,32]
[326491933,1715001431684,-870374.80614963,0.000385,60]
[326491934,1715001432006,557.0,0.00035884,30]
[326491935,1715001463743,3929.82153423,0.00027,30]
[326491936,1715001483102,2226.40127837,0.0001,6]
[326492066,1715002239641,-342.7150581,0.00015456,2]
[326492144,1715002240544,-999.9933705,0.00015456,2]
[326492150,1715002240589,-3013.69999996,0.00015456,2]
[326492152,1715002240600,-3421.99142241,0.00015456,2]
[326492170,1715002243563,364.18725658,0.0001,2]
[326492197,1715002251689,280.54594675,0.0001,2]
[326492198,1715002252898,155.87435291,0.0001,2]
[326492199,1715002253940,2571.02308471,0.0001,2]
[326492200,1715002254430,13542.00149883,0.0001,2]
[326492201,1715002255269,155.19982494,0.0001,2]
[326492203,1715002263934,229.32753237,0.0001,2]
[326492204,1715002265642,2762.91114629,0.0001,2]
[326492205,1715002271321,8310.55999757,0.0001,2]
[326492206,1715002271356,7808.07883554,0.0001,2]
[326492207,1715002278779,363.8776214,0.0001,2]
[326492208,1715002292292,4576.64307703,0.0001,2]
[326492209,1715002331422,447.00329869,9.999e-05,2]
[326492210,1715002350038,292.04079477,9.999e-05,2]
[326492211,1715002434304,1336.08187875,9.999e-05,2]
[326492212,1715002444476,10176.27449382,9.999e-05,2]
[326492213,1715002445260,9040.55012566,9.999e-05,2]
[326492214,1715002459527,1093.61289043,9.999e-05,2]
[326492215,1715002475413,309.28863614,0.0001,2]
[326492216,1715002495629,2152.71563818,9.999e-05,2]
[326492234,1715002647942,1000.0,0.00021,21]
[326492238,1715002676274,1000.0,0.00027,30]
[326492255,1715002761973,-1336.08187875,0.00015043,2]
[326492256,1715002762342,-3000.0,0.00015044,2]
[326492257,1715002763525,-4356.91812125,0.00015381,2]
[326492258,1715002834016,1000.0,0.00027,31]
[326492259,1715003005587,931.29681964,9.999e-05,2]
[326492260,1715003152139,1042.71154476,9.999e-05,2]
[326492262,1715003285092,379.85171232,9.999e-05,2]
[326492263,1715003313437,1336.08187875,9.999e-05,2]
[326492312,1715003432692,-1147.18679257,0.00015,2]
[326492314,1715003432701,-24900.0,0.00015228,2]
[326492316,1715003432711,-6118.0282183,0.00015228,2]
[326492318,1715003432720,-6790.8060151,0.00015381,2]
[326492320,1715003432730,-1981.77224627,0.00015454,2]
[326492322,1715003432740,-12486.09703484,0.00015455,2]
[326492324,1715003432750,-371.41032028,0.000162,2]
[326492326,1715003432759,-371.41032024,0.00016235,2]
[326492328,1715003432769,-371.41032024,0.00016269,2]
[326492330,1715003432779,-5000.0,0.000163,2]
[326492332,1715003432788,-276.4775157,0.000163,2]
[326492334,1715003432797,-371.41032024,0.00016304,2]
[326492335,1715003432807,-371.41032024,0.00016338,2]
[326492336,1715003432817,-2000.0,0.00016338,2]
[326492337,1715003432831,-1396.02575092,0.00016436,2]
[326492338,1715003432840,-158.07345455,0.00016436,2]
[326492339,1715003432850,-1041.97208394,0.00016436,2]
[326492340,1715003432860,-379.5668552,0.00016436,2]
[326492341,1715003432870,-1226.90933641,0.00016436,2]
[326492342,1715003432880,-158.50261399,0.00016437,2]
[326492343,1715003432897,-500.0,0.00016438,2]
[326492344,1715003432907,-500.0,0.00016438,2]
[326492345,1715003432917,-500.0,0.00016438,2]
[326492346,1715003432927,-500.0,0.00016438,2]
[326492347,1715003432937,-78.81839978,0.00016438,2]
[326492348,1715003432954,-421.18160022,0.00016438,2]
[326492349,1715003432963,-500.0,0.00016438,2]
[326492350,1715003432974,-506.36,0.00016438,2]
[326492351,1715003432983,-500.0,0.00016438,2]
[326492352,1715003432994,-598.1432,0.00016438,2]
[326492353,1715003433005,-500.0,0.00016438,2]
[326492354,1715003433015,-500.0,0.00016438,2]
[326492355,1715003433025,-500.0,0.00016438,2]
[326492356,1715003433036,-500.0,0.00016438,2]
[326492357,1715003433047,-500.0,0.00016438,2]
[326492358,1715003433057,-500.0,0.00016438,2]
[326492359,1715003433067,-500.0,0.00016438,2]
[326492360,1715003433078,-263.23700702,0.00016438,2]
[326492361,1715003433088,-1054.17,0.00016438,2]
[326492362,1715003433098,-500.0,0.00016438,2]
[326492363,1715003433108,-500.0,0.00016438,2]
[326492364,1715003433119,-500.0,0.00016438,2]
[326492365,1715003433129,-500.0,0.00016438,2]
[326492366,1715003433143,-500.0,0.00016438,2]
[326492367,1715003433153,-78.58992147,0.00016438,2]
[326492368,1715003433172,-421.41007853,0.00016438,2]
[326492369,1715003433183,-887.81,0.00016438,2]
[326492370,1715003433192,-500.0,0.00016438,2]
[326492371,1715003433203,-524.7469045,0.00016438,2]
[326492372,1715003433213,-500.0,0.00016438,2]
[326492373,1715003433224,-500.0,0.00016438,2]
[326492374,1715003433233,-500.0,0.00016438,2]
[326492375,1715003433243,-500.0,0.00016438,2]
[326492376,1715003433253,-500.0,0.00016438,2]
[326492377,1715003433264,-500.0,0.00016438,2]
[326492378,1715003433277,-500.0,0.00016438,2]
[326492379,1715003433287,-500.0,0.00016438,2]
[326492380,1715003433299,-500.0,0.00016438,2]
[326492381,1715003433312,-519.52046155,0.00016438,2]
[326492382,1715003433322,-500.0,0.00016438,2]
[326492383,1715003433332,-500.0,0.00016438,2]
[326492384,1715003433342,-500.0,0.00016438,2]
[326492385,1715003433352,-500.0,0.00016438,2]
[326492386,1715003433361,-500.0,0.00016438,2]
[326492387,1715003433371,-500.0,0.00016438,2]
[326492388,1715003433382,-500.0,0.00016438,2]
[326492389,1715003433393,-4510.56,0.00016438,2]
[326492390,1715003433403,-500.0,0.00016438,2]
[326492391,1715003433412,-500.0,0.00016438,2]
[326492392,1715003433421,-500.0,0.00016438,2]
[326492393,1715003433431,-2075.35,0.00016438,2]
[326492394,1715003433440,-500.0,0.00016438,2]
[326492395,1715003433450,-500.0,0.00016438,2]
[326492396,1715003433460,-500.0,0.00016438,2]
[326492397,1715003433470,-500.0,0.00016438,2]
[326492398,1715003433479,-500.0,0.00016438,2]
[326492399,1715003433489,-560.33,0.00016438,2]
[326492400,1715003433499,-665.23,0.00016438,2]
[326492401,1715003433509,-1629.83,0.00016438,2]
[326492402,1715003433520,-500.0,0.00016438,2]
[326492403,1715003433530,-988.79,0.00016438,2]
[326492404,1715003433540,-853.23,0.00016438,2]
[326492405,1715003433550,-539.35,0.00016438,2]
[326492406,1715003433559,-500.0,0.00016438,2]
[326492407,1715003433569,-1024.1,0.00016438,2]
[326492408,1715003433579,-511.24,0.00016438,2]
[326492409,1715003433589,-500.0,0.00016438,2]
[326492410,1715003433599,-607.65,0.00016438,2]
[326492411,1715003433610,-500.0,0.00016438,2]
[326492412,1715003433620,-500.0,0.00016438,2]
[326492413,1715003433630,-1295.3,0.00016438,2]
[326492414,1715003433642,-500.0,0.00016438,2]
[326492415,1715003433652,-500.0,0.00016438,2]
[326492416,1715003433661,-1233.96,0.00016438,2]
[326492417,1715003433671,-1579.22,0.00016438,2]
[326492418,1715003433680,-500.0,0.00016438,2]
[326492419,1715003433690,-500.0,0.00016438,2]
[326492420,1715003433700,-504.63584817,0.00016438,2]
[326492421,1715003433709,-673.96,0.00016438,2]
[326492422,1715003433719,-500.0,0.00016438,2]
[326492423,1715003433729,-500.0,0.00016438,2]
[326492424,1715003433739,-500.0,0.00016438,2]
[326492425,1715003433749,-500.0,0.00016438,2]
[326492426,1715003433758,-500.0,0.00016438,2]
[326492427,1715003433767,-500.0,0.00016438,2]
[326492428,1715003433777,-500.0,0.00016438,2]
[326492429,1715003433786,-500.0,0.00016438,2]
[326492430,1715003433796,-3783.93,0.00016438,2]
[326492431,1715003433805,-535.84,0.00016438,2]
[326492432,1715003433990,-500.0,0.00016438,2]
[326492433,1715003434001,-500.0,0.00016438,2]
[326492434,1715003434011,-500.0,0.00016438,2]
[326492435,1715003434022,-500.0,0.00016438,2]
[326492436,1715003434032,-1764.86,0.00016438,2]
[326492437,1715003434046,-1350.12,0.00016438,2]
[326492438,1715003434056,-500.0,0.00016438,2]
[326492439,1715003434065,-735.88,0.00016438,2]
[326492440,1715003434075,-803.4,0.00016438,2]
[326492441,1715003434086,-1267.89,0.00016438,2]
[326492442,1715003434095,-500.0,0.00016438,2]
[326492443,1715003434105,-514.498069,0.00016438,2]
[326492444,1715003434115,-538.18,0.00016438,2]
[326492445,1715003434125,-500.0,0.00016438,2]
[326492446,1715003434138,-555.68,0.00016438,2]
[326492447,1715003434147,-500.0,0.00016438,2]
[326492448,1715003434156,-500.0,0.00016438,2]
[326492449,1715003434165,-500.0,0.00016438,2]
[326492450,1715003434174,-500.0,0.00016438,2]
[326492451,1715003434183,-500.0,0.00016438,2]
[326492452,1715003434192,-2692.87,0.00016438,2]
[326492453,1715003434202,-500.0,0.00016438,2]
[326492454,1715003434212,-500.0,0.00016438,2]
[326492455,1715003434222,-500.0,0.00016438,2]
[326492456,1715003434231,-780.52,0.00016438,2]
[326492457,1715003434241,-500.0,0.00016438,2]
[326492458,1715003434250,-500.0,0.00016438,2]
[326492459,1715003434260,-500.0,0.00016438,2]
[326492460,1715003434273,-500.0,0.00016438,2]
[326492461,1715003434283,-500.0,0.00016438,2]
[326492462,1715003434293,-500.0,0.00016438,2]
[326492463,1715003434303,-500.0,0.00016438,2]
[326492464,1715003434316,-500.0,0.00016438,2]
[326492465,1715003434326,-403.06283719,0.00016438,2]
[326492466,1715003434336,-620.49,0.00016438,2]
[326492467,1715003434356,-500.0,0.00016438,2]
[326492468,1715003434367,-500.0,0.00016438,2]
[326492469,1715003434378,-500.0,0.00016438,2]
[326492470,1715003434391,-500.0,0.00016438,2]
[326492471,1715003434401,-525.13,0.00016438,2]
[326492472,1715003434411,-506.73868127,0.00016438,2]
[326492473,1715003434422,-775.18,0.00016438,2]
[326492474,1715003434432,-771.04958168,0.00016438,2]
[326492475,1715003434443,-521.78,0.00016438,2]
[326492476,1715003434454,-4908.92,0.00016438,2]
[326492477,1715003434464,-500.0,0.00016438,2]
[326492478,1715003434474,-785.19,0.00016438,2]
[326492479,1715003434484,-500.0,0.00016438,2]
[326492480,1715003434495,-500.0,0.00016438,2]
[326492481,1715003434505,-500.0,0.00016438,2]
[326492482,1715003434516,-500.0,0.00016438,2]
[326492483,1715003434526,-500.0,0.00016438,2]
[326492484,1715003434538,-6056.98,0.00016438,2]
[326492485,1715003434549,-5438.03,0.00016438,2]
[326492486,1715003434560,-500.0,0.00016438,2]
[326492487,1715003434570,-500.0,0.00016438,2]
[326492488,1715003434580,-500.0,0.00016438,2]
[326492489,1715003434590,-500.0,0.00016438,2]
[326492490,1715003434600,-584.67718374,0.00016438,2]
[326492491,1715003434610,-1023.6,0.00016438,2]
[326492492,1715003434620,-550.36,0.00016438,2]
[326492493,1715003434630,-500.0,0.00016438,2]
[326492494,1715003434641,-500.0,0.00016438,2]
[326492495,1715003434651,-500.0,0.00016438,2]
[326492496,1715003434661,-500.0,0.00016438,2]
[326492497,1715003434671,-500.0,0.00016438,2]
[326492498,1715003434681,-2784.2,0.00016438,2]
[326492499,1715003434691,-515.19,0.00016438,2]
[326492500,1715003434703,-500.0,0.00016438,2]
[326492501,1715003434716,-643.46,0.00016438,2]
[326492502,1715003434727,-722.59,0.00016438,2]
[326492503,1715003434737,-722.56,0.00016438,2]
[326492504,1715003434749,-500.0,0.00016438,2]
[326492505,1715003434759,-500.0,0.00016438,2]
[326492506,1715003434770,-500.0,0.00016438,2]
[326492507,1715003434781,-500.0,0.00016438,2]
[326492508,1715003434791,-1131.82,0.00016438,2]
[326492509,1715003434801,-2256.94,0.00016438,2]
[326492510,1715003434812,-500.0,0.00016438,2]
[326492511,1715003434822,-577.87450238,0.00016438,2]
[326492512,1715003434833,-1332.1,0.00016438,2]
[326492513,1715003434844,-500.0,0.00016438,2]
[326492514,1715003434854,-500.0,0.00016438,2]
[326492515,1715003434864,-500.0,0.00016438,2]
[326492516,1715003434875,-500.0,0.00016438,2]
[326492517,1715003434886,-500.0,0.00016438,2]
[326492518,1715003434897,-6045.85,0.00016438,2]
[326492519,1715003434907,-500.0,0.00016438,2]
[326492520,1715003434917,-1008.8,0.00016438,2]
[326492521,1715003434928,-500.0,0.00016438,2]
[326492522,1715003434939,-500.0,0.00016438,2]
[326492523,1715003434951,-500.0,0.00016438,2]
[326492524,1715003434962,-500.0,0.00016438,2]
[326492525,1715003434973,-500.0,0.00016438,2]
[326492526,1715003434984,-5242.74,0.00016438,2]
[326492527,1715003434995,-500.0,0.00016438,2]
[326492528,1715003435006,-2781.88,0.00016438,2]
[326492529,1715003435017,-500.0,0.00016438,2]
[326492530,1715003435028,-10505.61,0.00016438,2]
[326492531,1715003435046,-599.84,0.00016438,2]
[326492532,1715003435058,-500.0,0.00016438,2]
[326492533,1715003435081,-786.62,0.00016438,2]
[326492534,1715003435092,-500.0,0.00016438,2]
[326492535,1715003435102,-524.64,0.00016438,2]
[326492536,1715003435112,-500.0,0.00016438,2]
[326492537,1715003435125,-500.0,0.00016438,2]
[326492538,1715003435137,-884.94,0.00016438,2]
[326492539,1715003435147,-500.0,0.00016438,2]
[326492540,1715003435158,-500.0,0.00016438,2]
[326492541,1715003435169,-500.0,0.00016438,2]
[326492542,1715003435179,-500.0,0.00016438,2]
[326492543,1715003435190,-500.0,0.00016438,2]
[326492544,1715003435201,-580.94,0.00016438,2]
[326492545,1715003435212,-623.21,0.00016438,2]
[326492546,1715003435222,-1656.53,0.00016438,2]
[326492547,1715003435233,-867.68,0.00016438,2]
[326492548,1715003435243,-5907.35,0.00016438,2]
[326492549,1715003435254,-566.3,0.00016438,2]
[326492550,1715003435265,-782.36,0.00016438,2]
[326492551,1715003435275,-390.76614531,0.00016438,2]
[326492552,1715003435499,200.0,0.00027,30]
[326492568,1715003439987,-144.78739857,0.00016438,2]
[326492569,1715003439997,-604.53,0.00016438,2]
[326492570,1715003440006,-2234.44535281,0.00016438,2]
[326492571,1715003440018,-805.32512728,0.00016438,2]
[326492572,1715003440030,-2770.73241547,0.00016438,2]
[326492634,1715003445542,-2.3743852,0.00016437,2]
[326492650,1715003447726,-637.9026,0.00016437,2]
[326492651,1715003471831,4887.0,0.00027,30]
[326492652,1715003485418,290.38876457,9.999e-05,2]
[326492653,1715003547802,156.36740176,9.999e-05,2]
[326492654,1715003609629,2086.15678154,9.999e-05,2]
[326492655,1715003614171,6471.36657082,9.999e-05,2]
[326492656,1715003615730,8837.77692387,9.999e-05,2]
[326492657,1715003618198,363.99130579,9.999e-05,2]
[326492658,1715003625247,678.8868863,9.999e-05,2]
[326492659,1715003819083,150.0,0.00027,30]
[326492660,1715003849392,150.0,0.00027,30]
[326492661,1715003859788,1132.78270665,9.999e-05,2]
[326492662,1715003910769,409.6661174,9.999e-05,2]
[326492663,1715003914898,150.72868836,0.00023185,30]
[326492664,1715004085329,10000.0,0.00026672,120]
[326492665,1715004089846,654.18,0.00027,30]
[326492666,1715004103070,10000.0,0.00026672,120]
[326492667,1715004143229,10000.0,0.00026672,120]
[326492668,1715004155348,10000.0,0.00026672,120]
[326492669,1715004167317,10000.0,0.00026672,120]
[326492670,1715004179958,10000.0,0.00026672,120]
[326492671,1715004195151,10000.0,0.00026672,120]
[326492672,1715004209254,10000.0,0.00026672,120]
[326492673,1715004241057,10000.0,0.00026672,120]
[326492674,1715004249730,10000.0,0.00026672,120]
[326492675,1715004260856,10000.0,0.00026672,120]
[326492676,1715004272473,151.0,0.00026672,120]
[326492677,1715004351290,5445.62,0.00027,30]
[326492678,1715004413644,-3035.94322492,0.00014533,2]
[326492684,1715004545290,-3134.48557274,0.00018,7]
[326492685,1715004560716,2205.05130018,0.00018,7]
[326492689,1715004635942,-658.24540684,0.00014533,2]
[326492717,1715004639420,-989.85259935,0.00014533,2]
[326492769,1715004646395,-389.07306561,0.00014533,2]
[326492789,1715004646819,-353.095,0.00014533,2]
[326492796,1715004707883,1184.88270665,9.999e-05,2]
[326492797,1715004922113,1399.78353884,9.999e-05,2]
[326492798,1715005038055,154.7215013,9.999e-05,2]
[326492799,1715005427774,10174.54703771,9.999e-05,2]
[326492800,1715005619378,-3802.95322035,0.00013102,2]
[326492801,1715005735920,447.00329869,9.999e-05,2]
[326492845,1715005840043,-10174.54703771,0.00012356,2]
[326492847,1715005840054,-5837.31820112,0.00012357,2]
[326492875,1715005847465,-4065.3930542,0.00012357,2]
[326492877,1715005847479,-14997.28874468,0.00012357,2]
[326492879,1715005847489,-183.12182719,0.00013002,2]
[326492881,1715005847499,-154.7215013,0.00013102,2]
[326492883,1715005847508,-1709.4519652,0.00014119,2]
[326492884,1715005847518,-1873.79575581,0.00014236,2]
[326492947,1715005863362,164.7582934,0.0001,2]
[326492948,1715005866622,1109.68329453,0.00027,30]
[326492949,1715005903982,379.85171232,9.999e-05,2]
[326492950,1715005926585,309.16301887,9.999e-05,2]
[326492951,1715005960254,547.06765886,9.999e-05,2]
[326492952,1715005960289,90.94107622,9.999e-05,2]
[326492953,1715006367461,309.16301887,9.999e-05,2]
[326492955,1715006416549,47026.0,0.00027,30]
[326492957,1715006551908,6057.18,0.00027,30]
[326492959,1715006949494,816.12984113,9.999e-05,2]
[326492962,1715006967393,-290.38876457,0.00012499,2]
[326492965,1715007027151,1623.43487535,9.999e-05,2]
[326493031,1715007035041,-5010.55024208,0.00012499,2]
[326493032,1715007035052,-4152.56435314,0.000125,2]
[326493033,1715007035063,-24900.0,0.0001338,2]
[326493034,1715007035074,-3000.0,0.00013699,2]
[326493035,1715007035084,-622.606429,0.00013825,2]
[326493036,1715007035094,-1000.0,0.00014235,2]
[326493037,1715007035104,-153.0,0.000146,2]
[326493038,1715007035115,-153.0,0.0001474,2]
[326493039,1715007035124,-306.0,0.0001474,2]
[326493040,1715007035134,-153.0,0.000148,2]
[326493041,1715007035146,-271.1520628,0.000148,2]
[326493042,1715007035158,-153.0,0.000148,2]
[326493043,1715007035167,-153.0,0.000148,2]
[326493044,1715007035177,-153.0,0.000148,2]
[326493045,1715007035187,-153.0,0.000148,2]
[326493046,1715007035197,-153.0,0.000148,2]
[326493047,1715007035208,-157.5009339,0.000148,2]
[326493048,1715007035218,-153.0,0.000148,2]
[326493049,1715007035235,-153.0,0.000148,2]
[326493050,1715007035246,-153.0,0.000148,2]
[326493051,1715007035256,-153.0,0.000148,2]
[326493052,1715007035266,-153.0,0.000148,2]
[326493053,1715007035276,-153.0,0.000148,2]
[326493054,1715007035286,-155.01194252,0.00015,2]
[326493055,1715007035296,-125.77665399,0.00015,2]
[326493056,1715007037603,412.60897844,9.999e-05,2]
[326493117,1715007046823,-27.22334601,0.00015,2]
[326493119,1715007046833,-500.0,0.00015,2]
[326493121,1715007046842,-22.67867805,0.00015205,2]
[326493123,1715007046854,-130.32132195,0.00015205,2]
[326493125,1715007046864,-153.0,0.00015205,2]
[326493127,1715007046873,-1187.48867805,0.00015363,2]
[326493217,1715007047745,-318.58035155,0.00015363,2]
[326493219,1715007047780,-645.86252579,0.00015363,2]
[326493221,1715007047798,-1160.11835878,0.00015412,2]
[326493223,1715007047808,-153.0,0.00015562,2]
[326493225,1715007047818,-153.0,0.00015562,2]
[326493227,1715007047827,-153.0,0.00015562,2]
[326493229,1715007047837,-153.0,0.00015562,2]
[326493231,1715007047846,-187.5001033,0.0001589,2]
[326493233,1715007047854,-141.65901213,0.0001589,2]
[326493236,1715007047866,-288.85726787,0.0001589,2]
[326493238,1715007047875,-146.61277119,0.00016027,2]
[326493240,1715007047887,-6.38722881,0.00016027,2]
[326493242,1715007047898,-153.0,0.00016027,2]
[326493244,1715007047908,-153.0,0.00016027,2]
[326493246,1715007047918,-153.0,0.00016027,2]
[326493248,1715007047928,-153.0,0.00016027,2]
[326493250,1715007047937,-153.0,0.00016027,2]
[326493252,1715007047946,-153.0,0.00016027,2]
[326493254,1715007047955,-256.4029942,0.00016027,2]
[326493256,1715007047964,-153.0,0.00016027,2]
[326493258,1715007047973,-647.00591794,0.00016182,2]
[326493260,1715007047983,-426.93327603,0.000162,2]
[326493262,1715007047994,-426.933276,0.00016235,2]
[326493264,1715007048003,-426.933276,0.00016269,2]
[326493266,1715007048012,-5000.0,0.000163,2]
[326493267,1715007048034,-426.933276,0.00016304,2]
[326493270,1715007048053,-1558.07636983,0.00016333,2]
[326493416,1715007056847,1347.83105685,9.999e-05,2]
[326493417,1715007057161,550.61375639,9.999e-05,2]
[326493418,1715007082575,1092.69843081,9.999e-05,2]
[326493419,1715007085192,154.7215013,9.999e-05,2]
[326493420,1715007106499,2629.30064722,9.999e-05,2]
[326493421,1715007107331,315.23619623,9.999e-05,2]
[326493422,1715007120325,1578.28854487,9.999e-05,2]
[326493423,1715007126392,230.2796774,9.999e-05,2]
[326493424,1715007156877,290.38876457,9.999e-05,2]
[326493425,1715007205994,527.42048756,9.999e-05,2]
[326493426,1715007522082,1092.69843081,9.999e-05,2]
[326493427,1715007529403,154.7215013,9.999e-05,2]
[326493428,1715007562797,412.60897844,9.999e-05,2]
[326493429,1715007621875,281.05268358,9.999e-05,2]
[326493430,1715007637369,281.05268358,9.999e-05,2]
[326493431,1715007653515,223.14891787,9.999e-05,2]
[326493432,1715007657483,10585.65995121,9.999e-05,2]
[326493433,1715007657523,8621.04065182,9.999e-05,2]
[326493434,1715007664772,2086.15678154,9.999e-05,2]
[326493435,1715007670044,10174.54703771,9.998e-05,2]
[326493436,1715007676100,506.3480379,9.999e-05,2]
[326493437,1715007683051,1523.18753707,9.999e-05,2]
[326493438,1715007689471,1379.74743314,9.999e-05,2]
[326493439,1715007704136,-250.0,0.00013711,2]
[326493440,1715007705388,-1362.9798766,0.00013771,2]
[326493441,1715007706187,-744.35932258,0.000138,2]
[326493442,1715007707117,-13325.76080082,0.00014627,2]
[326493443,1715007722355,154.70605849,9.999e-05,2]
[326493444,1715007751014,-1092.69843081,0.00014626,2]
[326493445,1715007751346,-11574.23919918,0.00014627,2]
[326493446,1715007752025,-4553.0736104,0.0001464,2]
[326493447,1715007752365,-7829.98875961,0.00014723,2]
[326493448,1715007758511,5000.0,0.00027,30]
[326493449,1715007802497,-552.690464,0.00014688,2]
[326493450,1715007804601,-387.1414264,0.00014711,2]
[326493451,1715007804654,-5298.5881096,0.00014722,2]
[326493452,1715007816814,1336.08187875,9.999e-05,2]
[326493453,1715007872276,-652.4377538,0.0001463,2]
[326493454,1715007872694,-4347.5622462,0.00014722,2]
[326493455,1715007897862,1347.83105685,9.999e-05,2]
[326493456,1715008013993,638.00873508,9.999e-05,2]
[326493465,1715008186902,1379.74743314,9.999e-05,2]
[326493466,1715008192540,309.16301887,9.999e-05,2]
[326493499,1715008234006,-569.0,0.00013669,2]
[326493511,1715008235399,-7312.52969368,0.00013669,2]
[326493512,1715008235408,-1151.33629056,0.0001367,2]
[326493513,1715008235722,-435.41310781,0.0001367,2]
[326493566,1715008241992,-3714.18960828,0.0001367,2]
[326493567,1715008242002,-2304.3919857,0.00013677,2]
[326493569,1715008242011,-250.0,0.00013776,2]
[326493571,1715008242021,-168.32106332,0.00014622,2]
[326493576,1715008242034,-8428.4640702,0.00014668,2]
[326493580,1715008242044,-24900.0,0.00014714,2]
[326493583,1715008242054,-933.31969322,0.00014722,2]
[326493661,1715008242802,-21864.19479909,0.00014722,2]
[326493663,1715008242812,-1000.0,0.00014999,2]
[326493665,1715008242821,-580.0,0.00015,2]
[326493667,1715008242830,-250.0,0.00015,2]
[326493669,1715008242840,-940.45532708,0.0001505,2]
[326493671,1715008242857,-168.32106331,0.00015051,2]
[326493673,1715008242866,-168.32106331,0.0001548,2]
[326493675,1715008242875,-159.3793715,0.00015562,2]
[326493677,1715008242885,-153.0,0.00015562,2]
[326493679,1715008242894,-153.0,0.00015562,2]
[326493681,1715008242903,-153.0,0.00015562,2]
[326493683,1715008242912,-153.0,0.00015562,2]
[326493685,1715008242922,-153.0,0.00015562,2]
[326493687,1715008242931,-153.0,0.00015562,2]
[326493689,1715008242940,-160.546875,0.0001589,2]
[326493691,1715008242949,-168.32106331,0.00015909,2]
[326493692,1715008242958,-153.0,0.00016027,2]
[326493693,1715008242968,-153.0,0.00016027,2]
[326493694,1715008242977,-493.0,0.00016076,2]
[326493695,1715008242986,-153.0,0.000163,2]
[326493696,1715008242995,-4225.4604374,0.00016333,2]
[326493791,1715008245961,-7422.73438435,0.00016333,2]
[326493793,1715008245970,-208.72073891,0.00016333,2]
[326493795,1715008245980,-151.0,0.00016333,2]
[326493796,1715008245989,-151.0,0.00016333,2]
[326493797,1715008245999,-267.964741,0.00016333,2]
[326493798,1715008246010,-267.964741,0.00016333,2]